[Event "Live Chess"]
[Site "Chess.com"]
[Date "2023.05.21"]
[Round "-"]
[White "AyannaTang"]
[Black "JanMur7"]
[Result "0-1"]
[WhiteElo "176"]
[BlackElo "1949"]
[TimeControl "300"]
[EndTime "1:21:22 PDT"]
[Termination "JanMur7 won by checkmate"]

1. e4 {[%clk 0:04:57.1]} 1... e5 {[%clk 0:04:58.6]} 2. f4 {[%clk 0:04:53.7]}
2... exf4 {[%clk 0:04:57]} 3. Nf3 {[%clk 0:04:51.3]} 3... g5 {[%clk 0:04:55.9]}
4. d4 {[%clk 0:04:38.1]} 4... g4 {[%clk 0:04:54]} 5. Ne5 {[%clk 0:04:34]} 5...
Qh4+ {[%clk 0:04:49.9]} 6. g3 {[%clk 0:04:18.4]} 6... fxg3 {[%clk 0:04:47.4]} 7.
hxg3 {[%clk 0:04:17.3]} 7... Qxh1 {[%clk 0:04:31.8]} 8. Qxg4 {[%clk 0:04:12.4]}
8... Nc6 {[%clk 0:04:22.3]} 9. Nxc6 {[%clk 0:04:10.6]} 9... dxc6 {[%clk
0:04:20.3]} 10. Qf4 {[%clk 0:04:06.4]} 10... Bd6 {[%clk 0:04:10.7]} 11. e5
{[%clk 0:04:03.1]} 11... Bh3 {[%clk 0:04:02.5]} 12. exd6 {[%clk 0:03:55.4]}
12... Qxf1+ {[%clk 0:04:01.1]} 13. Qxf1 {[%clk 0:03:53.4]} 13... Bxf1 {[%clk
0:04:01]} 14. Kxf1 {[%clk 0:03:52.4]} 14... cxd6 {[%clk 0:03:59.9]} 15. d5
{[%clk 0:03:42.4]} 15... Kd7 {[%clk 0:03:56.3]} 16. dxc6+ {[%clk 0:03:40.6]}
16... bxc6 {[%clk 0:03:56.2]} 17. Be3 {[%clk 0:03:37.3]} 17... Ne7 {[%clk
0:03:53.6]} 18. Bd4 {[%clk 0:03:33.4]} 18... Rhg8 {[%clk 0:03:53.1]} 19. Nc3
{[%clk 0:03:29.8]} 19... Nf5 {[%clk 0:03:51.4]} 20. Ne2 {[%clk 0:03:20.6]} 20...
Nxg3+ {[%clk 0:03:47.8]} 21. Nxg3 {[%clk 0:03:19.2]} 21... Rxg3 {[%clk
0:03:47.7]} 22. Bf2 {[%clk 0:03:14.4]} 22... Rf3 {[%clk 0:03:46.2]} 23. Rd1
{[%clk 0:03:07.8]} 23... Re8 {[%clk 0:03:39.1]} 24. a4 {[%clk 0:02:55.1]} 24...
Re6 {[%clk 0:03:35.2]} 25. b4 {[%clk 0:02:52.6]} 25... Ref6 {[%clk 0:03:33.7]}
26. c4 {[%clk 0:02:50.6]} 26... Rxf2+ {[%clk 0:03:32.2]} 27. Kg1 {[%clk
0:02:46.8]} 27... Ra2 {[%clk 0:03:30]} 28. Rf1 {[%clk 0:02:40.3]} 28... Rxf1+
{[%clk 0:03:25.8]} 29. Kxf1 {[%clk 0:02:38.9]} 29... Ke6 {[%clk 0:03:24.1]} 30.
Ke1 {[%clk 0:02:37]} 30... Ke5 {[%clk 0:03:23.4]} 31. Kd1 {[%clk 0:02:35.8]}
31... Kd4 {[%clk 0:03:22.3]} 32. Kc1 {[%clk 0:02:34.8]} 32... Kc3 {[%clk
0:03:18.6]} 33. Kb1 {[%clk 0:02:33.7]} 33... Rh2 {[%clk 0:03:17.5]} 34. Ka1
{[%clk 0:02:31.7]} 34... Kb3 {[%clk 0:03:15.1]} 35. Kb1 {[%clk 0:02:30.2]} 35...
Rh1# {[%clk 0:03:15]} 0-1

[Event "Live Chess"]
[Site "Chess.com"]
[Date "2023.05.21"]
[Round "-"]
[White "swingrumbacha"]
[Black "Mikhail_Golubev"]
[Result "0-1"]
[WhiteElo "2437"]
[BlackElo "2482"]
[TimeControl "300"]
[EndTime "1:21:26 PDT"]
[Termination "Mikhail_Golubev won on time"]

1. d4 {[%clk 0:04:51.9]} 1... Nf6 {[%clk 0:04:58]} 2. c4 {[%clk 0:04:48.7]} 2...
g6 {[%clk 0:04:56.5]} 3. Nc3 {[%clk 0:04:45.3]} 3... Bg7 {[%clk 0:04:56.1]} 4.
e4 {[%clk 0:04:41.1]} 4... d6 {[%clk 0:04:55.3]} 5. f3 {[%clk 0:04:38.4]} 5...
O-O {[%clk 0:04:53.4]} 6. Be3 {[%clk 0:04:34.8]} 6... a6 {[%clk 0:04:52.5]} 7.
Qd2 {[%clk 0:04:31.4]} 7... Nbd7 {[%clk 0:04:51.4]} 8. Bd3 {[%clk 0:04:27.7]}
8... c5 {[%clk 0:04:41.4]} 9. Nge2 {[%clk 0:04:24.3]} 9... cxd4 {[%clk
0:04:30.9]} 10. Nxd4 {[%clk 0:04:20.8]} 10... Ne5 {[%clk 0:04:29.8]} 11. Be2
{[%clk 0:04:17.3]} 11... Bd7 {[%clk 0:04:26]} 12. Rc1 {[%clk 0:04:12.6]} 12...
Qa5 {[%clk 0:04:15.6]} 13. O-O {[%clk 0:04:08.6]} 13... Rfc8 {[%clk 0:04:14.3]}
14. c5 {[%clk 0:04:04.2]} 14... dxc5 {[%clk 0:04:03.2]} 15. Nb3 {[%clk
0:04:00.2]} 15... Qd8 {[%clk 0:03:52.3]} 16. f4 {[%clk 0:03:55.9]} 16... Neg4
{[%clk 0:03:33.4]} 17. e5 {[%clk 0:03:50.1]} 17... Nxe3 {[%clk 0:03:29.9]} 18.
Qxe3 {[%clk 0:03:46.7]} 18... Ng4 {[%clk 0:03:24.1]} 19. Qd2 {[%clk 0:03:39.8]}
19... c4 {[%clk 0:03:12.9]} 20. Rfd1 {[%clk 0:03:34.1]} 20... cxb3 {[%clk
0:02:59]} 21. Qxd7 {[%clk 0:03:29.4]} 21... Qb6+ {[%clk 0:02:19.4]} 22. Qd4
{[%clk 0:03:23.8]} 22... Qxd4+ {[%clk 0:02:18.2]} 23. Rxd4 {[%clk 0:03:20.3]}
23... bxa2 {[%clk 0:02:17.9]} 24. Bxg4 {[%clk 0:03:16.7]} 24... e6 {[%clk
0:01:59.6]} 25. Ra4 {[%clk 0:03:10.9]} 25... b5 {[%clk 0:01:51.8]} 26. Rxa2
{[%clk 0:03:06.8]} 26... b4 {[%clk 0:01:45.7]} 27. Bf3 {[%clk 0:02:55.2]} 27...
Ra7 {[%clk 0:01:34.4]} 28. Ne2 {[%clk 0:02:51.1]} 28... Rxc1+ {[%clk 0:01:31.7]}
29. Nxc1 {[%clk 0:02:47.2]} 29... a5 {[%clk 0:01:30.6]} 30. Nd3 {[%clk
0:02:43.3]} 30... Bf8 {[%clk 0:01:27.5]} 31. Ra4 {[%clk 0:02:38.9]} 31... Rd7
{[%clk 0:01:15.7]} 32. Be2 {[%clk 0:02:31.7]} 32... Ra7 {[%clk 0:01:14.6]} 33.
Kf1 {[%clk 0:02:25.8]} 33... Be7 {[%clk 0:01:13.3]} 34. Nc1 {[%clk 0:02:18.6]}
34... Kg7 {[%clk 0:01:12.1]} 35. g3 {[%clk 0:02:13.9]} 35... Bd8 {[%clk
0:01:11]} 36. Bd3 {[%clk 0:02:08.9]} 36... Bb6 {[%clk 0:01:09.6]} 37. Ke1 {[%clk
0:02:03.3]} 37... h5 {[%clk 0:01:04]} 38. Be4 {[%clk 0:01:58.7]} 38... Rc7
{[%clk 0:00:59.4]} 39. Kd1 {[%clk 0:01:53.7]} 39... Rd7+ {[%clk 0:00:55.8]} 40.
Ke1 {[%clk 0:01:49.9]} 40... Rc7 {[%clk 0:00:54.8]} 41. Kd1 {[%clk 0:01:45.3]}
41... Rd7+ {[%clk 0:00:54]} 42. Ke2 {[%clk 0:01:41.7]} 42... Rc7 {[%clk
0:00:52.9]} 43. Nb3 {[%clk 0:01:37.8]} 43... Ra7 {[%clk 0:00:45.1]} 44. Bd3
{[%clk 0:01:33.1]} 44... Kh6 {[%clk 0:00:40.3]} 45. h3 {[%clk 0:01:27.4]} 45...
Ra8 {[%clk 0:00:38.9]} 46. h4 {[%clk 0:01:23.4]} 46... Ra7 {[%clk 0:00:37.9]}
47. Bb1 {[%clk 0:01:18.8]} 47... Kg7 {[%clk 0:00:36.7]} 48. Bc2 {[%clk
0:01:14.5]} 48... Kf8 {[%clk 0:00:35.8]} 49. Bd3 {[%clk 0:01:10.3]} 49... Ke7
{[%clk 0:00:35.2]} 50. Nd2 {[%clk 0:01:05.9]} 50... Kf8 {[%clk 0:00:34.1]} 51.
Nc4 {[%clk 0:01:01.8]} 51... Bc7 {[%clk 0:00:33.6]} 52. b3 {[%clk 0:00:57.8]}
52... Ke7 {[%clk 0:00:32.6]} 53. Ra2 {[%clk 0:00:53.7]} 53... Ra8 {[%clk
0:00:31.6]} 54. Nd2 {[%clk 0:00:49.7]} 54... Ra7 {[%clk 0:00:30.6]} 55. Rc2
{[%clk 0:00:44.5]} 55... Bb6 {[%clk 0:00:29.8]} 56. Bb5 {[%clk 0:00:40.9]} 56...
Bd4 {[%clk 0:00:27.5]} 57. Ne4 {[%clk 0:00:36.3]} 57... Rb7 {[%clk 0:00:24.3]}
58. Nd6 {[%clk 0:00:32.4]} 58... Rb8 {[%clk 0:00:21.4]} 59. Rc4 {[%clk
0:00:28.6]} 59... Bb6 {[%clk 0:00:19.6]} 60. Rc8 {[%clk 0:00:25]} 60... Ba7
{[%clk 0:00:16.8]} 61. Rc7+ {[%clk 0:00:21.8]} 61... Kf8 {[%clk 0:00:14.6]} 62.
Rxf7+ {[%clk 0:00:18.5]} 62... Kg8 {[%clk 0:00:13.9]} 63. Rxa7 {[%clk
0:00:14.9]} 63... Rd8 {[%clk 0:00:11.8]} 64. Bc4 {[%clk 0:00:11.3]} 64... Rb8
{[%clk 0:00:10]} 65. Bxe6+ {[%clk 0:00:08.8]} 65... Kf8 {[%clk 0:00:09.2]} 0-1

[Event "Live Chess"]
[Site "Chess.com"]
[Date "2023.05.21"]
[Round "-"]
[White "RamsayFlayer"]
[Black "hturner40"]
[Result "1-0"]
[WhiteElo "1972"]
[BlackElo "1783"]
[TimeControl "300"]
[EndTime "1:21:43 PDT"]
[Termination "RamsayFlayer won by resignation"]

1. e4 {[%clk 0:04:56.6]} 1... Nc6 {[%clk 0:04:58.1]} 2. d4 {[%clk 0:04:55.1]}
2... e5 {[%clk 0:04:57.2]} 3. d5 {[%clk 0:04:53.9]} 3... Nce7 {[%clk 0:04:56.3]}
4. f4 {[%clk 0:04:48.4]} 4... Ng6 {[%clk 0:04:55.5]} 5. Nf3 {[%clk 0:04:40]}
5... exf4 {[%clk 0:04:53.7]} 6. Bc4 {[%clk 0:04:34]} 6... Bc5 {[%clk 0:04:52.2]}
7. Nc3 {[%clk 0:04:25.9]} 7... Nf6 {[%clk 0:04:45.1]} 8. e5 {[%clk 0:03:58]}
8... Ng4 {[%clk 0:04:42.3]} 9. Qe2 {[%clk 0:03:32.5]} 9... O-O {[%clk 0:04:08]}
10. h3 {[%clk 0:03:27.3]} 10... Ne3 {[%clk 0:04:01.1]} 11. Bxe3 {[%clk
0:03:23.3]} 11... Bxe3 {[%clk 0:03:55.8]} 12. Nd1 {[%clk 0:03:18.7]} 12... Bb6
{[%clk 0:03:10]} 13. Nf2 {[%clk 0:03:14.8]} 13... Re8 {[%clk 0:02:52.8]} 14. Nd3
{[%clk 0:02:55.5]} 14... Be3 {[%clk 0:02:41.5]} 15. g3 {[%clk 0:02:36.3]} 15...
d6 {[%clk 0:02:36.4]} 16. gxf4 {[%clk 0:02:33.3]} 16... Nxf4 {[%clk 0:02:29.4]}
17. Nxf4 {[%clk 0:02:29.6]} 17... Bxf4 {[%clk 0:02:27.8]} 18. e6 {[%clk
0:02:18.4]} 18... fxe6 {[%clk 0:02:24]} 19. dxe6 {[%clk 0:02:15.7]} 19... d5
{[%clk 0:02:20.8]} 20. Nd4 {[%clk 0:01:33.9]} 20... Qh4+ {[%clk 0:01:45.2]} 21.
Kf1 {[%clk 0:01:27.7]} 21... dxc4 {[%clk 0:01:25.6]} 22. Qxc4 {[%clk 0:01:24.2]}
22... Be3 {[%clk 0:00:59.5]} 23. e7+ {[%clk 0:01:16.7]} 23... Kh8 {[%clk
0:00:57.2]} 24. Qf7 {[%clk 0:01:09.2]} 24... Bxh3+ {[%clk 0:00:54.7]} 25. Ke2
{[%clk 0:01:01.5]} 25... Bxd4 {[%clk 0:00:40.5]} 26. Raf1 {[%clk 0:00:54.7]}
26... Qe4+ {[%clk 0:00:33.9]} 27. Kd1 {[%clk 0:00:51.9]} 27... Bg4+ {[%clk
0:00:20.7]} 28. Kc1 {[%clk 0:00:47.2]} 28... Bf6 {[%clk 0:00:19]} 29. Re1 {[%clk
0:00:29.6]} 29... Qg6 {[%clk 0:00:16]} 30. Qxg6 {[%clk 0:00:28]} 1-0

[Event "Live Chess"]
[Site "Chess.com"]
[Date "2023.05.21"]
[Round "-"]
[White "elephantgerrald"]
[Black "HoarseyHorsey"]
[Result "0-1"]
[WhiteElo "761"]
[BlackElo "1467"]
[TimeControl "300"]
[EndTime "1:21:43 PDT"]
[Termination "HoarseyHorsey won on time"]

1. e4 {[%clk 0:04:50.8]} 1... c5 {[%clk 0:04:58.6]} 2. Nf3 {[%clk 0:04:46.4]}
2... e6 {[%clk 0:04:57.8]} 3. g3 {[%clk 0:04:40.5]} 3... Nc6 {[%clk 0:04:54.6]}
4. Bg2 {[%clk 0:04:38.8]} 4... Be7 {[%clk 0:04:49.2]} 5. d3 {[%clk 0:04:37.5]}
5... d5 {[%clk 0:04:46.6]} 6. e5 {[%clk 0:04:30.9]} 6... Qc7 {[%clk 0:04:41.5]}
7. O-O {[%clk 0:04:26.5]} 7... Nxe5 {[%clk 0:04:36]} 8. Nxe5 {[%clk 0:04:24.2]}
8... Qxe5 {[%clk 0:04:35.3]} 9. f4 {[%clk 0:04:16.8]} 9... Qd6 {[%clk
0:04:30.4]} 10. d4 {[%clk 0:04:07.1]} 10... c4 {[%clk 0:04:25.4]} 11. b3 {[%clk
0:04:02.1]} 11... b5 {[%clk 0:04:20.9]} 12. bxc4 {[%clk 0:04:00.3]} 12... bxc4
{[%clk 0:04:20.1]} 13. Ba3 {[%clk 0:03:55.9]} 13... Qb6 {[%clk 0:04:12.3]} 14.
Bxe7 {[%clk 0:03:36.6]} 14... Nxe7 {[%clk 0:04:12.2]} 15. Nc3 {[%clk 0:03:32.7]}
15... O-O {[%clk 0:03:57.4]} 16. g4 {[%clk 0:03:15.7]} 16... Nc6 {[%clk
0:03:49.1]} 17. g5 {[%clk 0:03:14]} 17... Qxd4+ {[%clk 0:03:45.2]} 18. Qxd4
{[%clk 0:03:09.5]} 18... Nxd4 {[%clk 0:03:45.1]} 19. Nxd5 {[%clk 0:03:02.5]}
19... exd5 {[%clk 0:03:42.7]} 20. Bxd5 {[%clk 0:03:01]} 20... Rb8 {[%clk
0:03:36.3]} 21. Bxc4 {[%clk 0:02:59.6]} 21... Bf5 {[%clk 0:03:28.8]} 22. c3
{[%clk 0:02:56]} 22... Nc2 {[%clk 0:03:22]} 23. Rac1 {[%clk 0:02:48.1]} 23...
Ne3 {[%clk 0:03:20.3]} 24. Rf3 {[%clk 0:02:42.2]} 24... Nxc4 {[%clk 0:03:19.1]}
25. h4 {[%clk 0:02:28.2]} 25... Rb1 {[%clk 0:03:11.8]} 26. Rxb1 {[%clk
0:02:24.9]} 26... Bxb1 {[%clk 0:03:11.7]} 27. Rf1 {[%clk 0:02:21.7]} 27... Bf5
{[%clk 0:03:01.5]} 28. a4 {[%clk 0:02:03.4]} 28... f6 {[%clk 0:02:46.5]} 29.
gxf6 {[%clk 0:01:55]} 29... Rxf6 {[%clk 0:02:46.4]} 30. Re1 {[%clk 0:01:48.2]}
30... Kf7 {[%clk 0:02:41.3]} 31. Rd1 {[%clk 0:01:45.2]} 31... Rg6+ {[%clk
0:02:36.2]} 32. Kf2 {[%clk 0:01:42.5]} 32... Rh6 {[%clk 0:02:24.1]} 33. Kg3
{[%clk 0:01:23.9]} 33... Rd6 {[%clk 0:02:21]} 34. Rb1 {[%clk 0:01:17.6]} 34...
a5 {[%clk 0:02:09.7]} 35. Rb7+ {[%clk 0:01:08.8]} 35... Kf6 {[%clk 0:02:08.3]}
36. Rb8 {[%clk 0:00:55.9]} 36... Rd3+ {[%clk 0:02:05]} 37. Kg2 {[%clk
0:00:40.7]} 37... Rxc3 {[%clk 0:01:59.6]} 38. Rf8+ {[%clk 0:00:37.4]} 38... Ke6
{[%clk 0:01:51.2]} 39. Re8+ {[%clk 0:00:32]} 39... Kf7 {[%clk 0:01:48.1]} 40.
Rb8 {[%clk 0:00:27.4]} 40... Rh3 {[%clk 0:01:37.1]} 41. Rb7+ {[%clk 0:00:24.6]}
41... Kf6 {[%clk 0:01:34]} 42. Ra7 {[%clk 0:00:19.6]} 42... Rxh4 {[%clk
0:01:30.5]} 43. Ra6+ {[%clk 0:00:17.8]} 43... Be6 {[%clk 0:01:28.3]} 44. Kg3
{[%clk 0:00:14.9]} 44... Rg4+ {[%clk 0:01:26.1]} 45. Kf3 {[%clk 0:00:13.6]}
45... Rg1 {[%clk 0:01:23.8]} 46. Ke4 {[%clk 0:00:09.9]} 46... Rd1 {[%clk
0:01:17.4]} 47. Kf3 {[%clk 0:00:07.7]} 47... Rd3+ {[%clk 0:01:15.1]} 48. Ke2
{[%clk 0:00:06.1]} 48... Re3+ {[%clk 0:01:13]} 49. Kf2 {[%clk 0:00:04]} 49...
Kf5 {[%clk 0:01:11]} 50. Kf1 {[%clk 0:00:01.3]} 50... Kxf4 {[%clk 0:01:09.5]}
51. Kf2 {[%clk 0:00:00.2]} 51... h5 {[%clk 0:01:07.6]} 0-1

[Event "Live Chess"]
[Site "Chess.com"]
[Date "2023.05.21"]
[Round "-"]
[White "LiamClery2020"]
[Black "FailsGambits"]
[Result "1-0"]
[WhiteElo "2019"]
[BlackElo "1336"]
[TimeControl "300"]
[EndTime "1:22:01 PDT"]
[Termination "LiamClery2020 won by resignation"]

1. e4 {[%clk 0:04:59.1]} 1... e5 {[%clk 0:04:56.3]} 2. Nc3 {[%clk 0:04:56.4]}
2... Nc6 {[%clk 0:04:52.6]} 3. Bc4 {[%clk 0:04:54.1]} 3... d6 {[%clk 0:04:50.5]}
4. Nf3 {[%clk 0:04:51.2]} 4... f5 {[%clk 0:04:46.1]} 5. exf5 {[%clk 0:04:48.7]}
5... Bxf5 {[%clk 0:04:46]} 6. O-O {[%clk 0:04:47.5]} 6... Be7 {[%clk 0:04:41.9]}
7. d4 {[%clk 0:04:46.6]} 7... Bg4 {[%clk 0:04:24.9]} 8. dxe5 {[%clk 0:04:42.2]}
8... Nxe5 {[%clk 0:04:24.8]} 9. Be2 {[%clk 0:04:38.8]} 9... Nxf3+ {[%clk
0:04:14.9]} 10. Bxf3 {[%clk 0:04:38.7]} 10... Bxf3 {[%clk 0:04:14.1]} 11. Qxf3
{[%clk 0:04:38.6]} 11... c6 {[%clk 0:03:50.7]} 12. Re1 {[%clk 0:04:33.3]} 12...
Qd7 {[%clk 0:03:37.9]} 13. Bg5 {[%clk 0:04:30.3]} 13... O-O-O {[%clk 0:03:30.6]}
14. Bxe7 {[%clk 0:04:27.3]} 14... Nxe7 {[%clk 0:03:30.5]} 15. Rad1 {[%clk
0:04:25.4]} 15... Rhf8 {[%clk 0:03:11]} 16. Qg3 {[%clk 0:04:22.7]} 16... Nf5
{[%clk 0:03:06.7]} 17. Qd3 {[%clk 0:04:17.1]} 17... Rf6 {[%clk 0:02:53.4]} 18.
Ne4 {[%clk 0:04:09.9]} 18... Rg6 {[%clk 0:02:37.4]} 19. Qa3 {[%clk 0:04:04.1]}
19... Kb8 {[%clk 0:02:26.2]} 20. Qh3 {[%clk 0:03:41.3]} 20... Nh6 {[%clk
0:02:10]} 21. Qh5 {[%clk 0:03:25.1]} 21... Qg4 {[%clk 0:02:00.7]} 22. Qxg4
{[%clk 0:03:20.1]} 22... Nxg4 {[%clk 0:02:00.6]} 23. f3 {[%clk 0:03:15.8]} 23...
Nh6 {[%clk 0:01:48.8]} 24. Kf2 {[%clk 0:03:13.7]} 24... Nf7 {[%clk 0:01:42.8]}
25. Ng3 {[%clk 0:03:07.4]} 25... Ne5 {[%clk 0:01:34.2]} 26. Rxe5 {[%clk
0:03:05.5]} 1-0

[Event "Live Chess"]
[Site "Chess.com"]
[Date "2023.05.21"]
[Round "-"]
[White "EdenHazard8"]
[Black "KeithArkell"]
[Result "1/2-1/2"]
[WhiteElo "1943"]
[BlackElo "2516"]
[TimeControl "300"]
[EndTime "1:22:07 PDT"]
[Termination "Game drawn by agreement"]

1. e4 {[%clk 0:04:58.7]} 1... c6 {[%clk 0:04:58.7]} 2. d4 {[%clk 0:04:58.2]}
2... d5 {[%clk 0:04:57.6]} 3. e5 {[%clk 0:04:57.7]} 3... c5 {[%clk 0:04:56.8]}
4. dxc5 {[%clk 0:04:55.3]} 4... Nc6 {[%clk 0:04:55.9]} 5. f4 {[%clk 0:04:53.1]}
5... e6 {[%clk 0:04:54.4]} 6. Be3 {[%clk 0:04:50.7]} 6... d4 {[%clk 0:04:54]} 7.
Bf2 {[%clk 0:04:49.6]} 7... Bxc5 {[%clk 0:04:53.8]} 8. Nf3 {[%clk 0:04:47.5]}
8... Nge7 {[%clk 0:04:53]} 9. c3 {[%clk 0:04:41.6]} 9... dxc3 {[%clk 0:04:49.5]}
10. Qxd8+ {[%clk 0:04:39.7]} 10... Kxd8 {[%clk 0:04:39.3]} 11. Nxc3 {[%clk
0:04:37.3]} 11... Bxf2+ {[%clk 0:04:38.1]} 12. Kxf2 {[%clk 0:04:36]} 12... Nf5
{[%clk 0:04:33.1]} 13. Nb5 {[%clk 0:04:32.3]} 13... Ke7 {[%clk 0:04:32]} 14. g4
{[%clk 0:04:26.3]} 14... Nh6 {[%clk 0:04:28.9]} 15. h3 {[%clk 0:04:25]} 15... f6
{[%clk 0:04:28.3]} 16. Nd6 {[%clk 0:04:17]} 16... Nf7 {[%clk 0:04:24.3]} 17.
Nxf7 {[%clk 0:04:05.3]} 17... Kxf7 {[%clk 0:04:22.8]} 18. Bc4 {[%clk 0:04:04.6]}
18... Rd8 {[%clk 0:04:19.1]} 19. Rhd1 {[%clk 0:04:02]} 19... fxe5 {[%clk
0:04:11.1]} 20. f5 {[%clk 0:03:51.7]} 20... Ke7 {[%clk 0:04:07.8]} 21. Rxd8
{[%clk 0:03:40.4]} 21... Nxd8 {[%clk 0:04:05.7]} 22. fxe6 {[%clk 0:03:33.3]}
22... Bxe6 {[%clk 0:04:04.6]} 23. Nxe5 {[%clk 0:03:32.3]} 23... Bxc4 {[%clk
0:04:02.4]} 24. Nxc4 {[%clk 0:03:32.2]} 24... Ne6 {[%clk 0:03:56.8]} 25. Re1
{[%clk 0:03:28.5]} 25... Rc8 {[%clk 0:03:52.4]} 26. Ne3 {[%clk 0:03:20.6]} 26...
g6 {[%clk 0:03:49.7]} 27. Re2 {[%clk 0:03:10.2]} 27... Kf7 {[%clk 0:03:47.9]}
28. Nd5 {[%clk 0:03:05.3]} 28... Rc5 {[%clk 0:03:45.1]} 29. Nc3 {[%clk
0:03:00.6]} 29... Rc6 {[%clk 0:03:40.9]} 30. Ne4 {[%clk 0:02:50.9]} 30... h6
{[%clk 0:03:37.9]} 31. Kg3 {[%clk 0:02:47.2]} 31... g5 {[%clk 0:03:37]} 32. Rf2+
{[%clk 0:02:44.8]} 32... Ke7 {[%clk 0:03:31.7]} 33. h4 {[%clk 0:02:42]} 33...
gxh4+ {[%clk 0:03:30.5]} 34. Kxh4 {[%clk 0:02:41.9]} 34... Rc4 {[%clk
0:03:28.4]} 35. Ng3 {[%clk 0:02:38.2]} 35... Rc1 {[%clk 0:03:18.1]} 36. Nf5+
{[%clk 0:02:35.8]} 36... Kd7 {[%clk 0:03:17.2]} 37. Rd2+ {[%clk 0:02:28.2]}
37... Kc7 {[%clk 0:03:14.1]} 38. Kg3 {[%clk 0:02:13.6]} 38... Rg1+ {[%clk
0:03:03.3]} 39. Rg2 {[%clk 0:02:11.9]} 39... Rxg2+ {[%clk 0:02:37.5]} 40. Kxg2
{[%clk 0:02:11.8]} 40... h5 {[%clk 0:02:36.4]} 41. gxh5 {[%clk 0:01:59.8]} 41...
Nf4+ {[%clk 0:02:35.3]} 42. Kf3 {[%clk 0:01:59.5]} 42... Nxh5 {[%clk 0:02:35]}
43. Ke4 {[%clk 0:01:56.2]} 43... Kc6 {[%clk 0:02:32.4]} 44. Kd4 {[%clk
0:01:52.4]} 44... b5 {[%clk 0:02:26.5]} 45. Ne7+ {[%clk 0:01:48.3]} 45... Kd7
{[%clk 0:02:19.5]} 46. Nd5 {[%clk 0:01:45.9]} 46... Kd6 {[%clk 0:02:18.8]} 47.
b4 {[%clk 0:01:37.1]} 47... Ng7 {[%clk 0:02:15.8]} 48. Nc3 {[%clk 0:01:34.9]}
48... Ne6+ {[%clk 0:02:12.7]} 49. Kd3 {[%clk 0:01:31.7]} 49... Nc7 {[%clk
0:02:04.9]} 50. a4 {[%clk 0:01:27.5]} 50... a6 {[%clk 0:02:02.7]} 51. axb5
{[%clk 0:01:25.4]} 51... axb5 {[%clk 0:01:55.7]} 52. Nxb5+ {[%clk 0:01:23.1]}
52... Nxb5 {[%clk 0:01:55]} 1/2-1/2

[Event "Live Chess"]
[Site "Chess.com"]
[Date "2023.05.21"]
[Round "-"]
[White "domrobson"]
[Black "JoshMcK"]
[Result "1-0"]
[WhiteElo "1743"]
[BlackElo "1532"]
[TimeControl "300"]
[EndTime "1:22:14 PDT"]
[Termination "domrobson won by resignation"]

1. d4 {[%clk 0:04:56.4]} 1... d5 {[%clk 0:04:58.5]} 2. c4 {[%clk 0:04:55.2]}
2... e6 {[%clk 0:04:57.6]} 3. Nf3 {[%clk 0:04:53.8]} 3... Nf6 {[%clk 0:04:57]}
4. Nc3 {[%clk 0:04:52.8]} 4... a6 {[%clk 0:04:53.8]} 5. Bg5 {[%clk 0:04:49.5]}
5... dxc4 {[%clk 0:04:52]} 6. e4 {[%clk 0:04:48.5]} 6... Be7 {[%clk 0:04:45.3]}
7. Bxc4 {[%clk 0:04:44.9]} 7... O-O {[%clk 0:04:43.2]} 8. O-O {[%clk 0:04:43.3]}
8... b5 {[%clk 0:04:38.4]} 9. Bd3 {[%clk 0:04:42.1]} 9... Bb7 {[%clk 0:04:35.2]}
10. e5 {[%clk 0:04:40.2]} 10... Nd5 {[%clk 0:04:32.3]} 11. Bxe7 {[%clk
0:04:36.1]} 11... Qxe7 {[%clk 0:04:31.1]} 12. Nxd5 {[%clk 0:04:34.8]} 12... Bxd5
{[%clk 0:04:30.9]} 13. h4 {[%clk 0:04:32.8]} 13... Bxf3 {[%clk 0:04:26.7]} 14.
Qxf3 {[%clk 0:04:31.7]} 14... Qxh4 {[%clk 0:04:25.8]} 15. Qxa8 {[%clk
0:04:30.3]} 15... Qxd4 {[%clk 0:04:20.5]} 16. Qe4 {[%clk 0:04:28.5]} 16... Qxe4
{[%clk 0:04:16.1]} 17. Bxe4 {[%clk 0:04:27.4]} 17... Nd7 {[%clk 0:04:15.4]} 18.
f4 {[%clk 0:04:25.8]} 18... f5 {[%clk 0:04:06.2]} 19. Bb7 {[%clk 0:04:19.2]}
19... a5 {[%clk 0:03:59.2]} 20. Bc6 {[%clk 0:04:15.6]} 20... Nc5 {[%clk
0:03:58.2]} 21. Bxb5 {[%clk 0:04:12.8]} 21... Ne4 {[%clk 0:03:57.1]} 22. Rfd1
{[%clk 0:04:05.1]} 22... g5 {[%clk 0:03:53.2]} 23. fxg5 {[%clk 0:03:54.4]} 23...
Nxg5 {[%clk 0:03:53.1]} 24. Rd7 {[%clk 0:03:49.8]} 24... Nf7 {[%clk 0:03:50]}
25. Re1 {[%clk 0:03:44.7]} 25... c5 {[%clk 0:03:47.3]} 26. Ra7 {[%clk
0:03:41.6]} 1-0